[Event "GER-ch Youth-U12 2024"]
[Site "Willingen"]
[Date "2024.05.19"]
[Round "1"]
[White "Nezhyvenko, Mykhaylo"]
[Black "Heins, Simon"]
[Result "1-0"]
[ECO "C55"]
[WhiteElo "2075"]
[BlackElo "1626"]
[Annotator "RC"]
[PlyCount "89"]
[EventDate "2022.06.05"]
[EventType "swiss"]
[EventRounds "9"]
[EventCountry "GER"]
[SourceTitle "playchess.com"]
[Source "ChessBase"]
[SourceQuality "1"]
[TimeControl "40/4500+30:900+30"]

1. e4 {[%emt 0:00:00]} e5 {[%emt 0:00:00]} 2. Nf3 {[%emt 0:00:00]} Nc6 {[%emt 0:00:00]} 3. Bc4 {[%emt 0:00:00]} Nf6 {[%emt 0:00:00]} 4. d3 {[%emt 0:00:00]} Be7 {[%emt 0:00:00]} 5. c3 {[%emt 0:00:00]} d6 {[%emt 0:00:00]} 6. O-O {[%emt 0:00:00]} a6 {[%emt 0:00:00]} 7. a4 {[%emt 0:00:00]} O-O {[%emt 0:00:00]} 8. Re1 {[%emt 0:00:00]} Bg4 {[%emt 0:00:00]} 9. h3 {[%emt 0:00:00]} Be6 {[%emt 0:03:58]} 10. Bxe6 {[%emt 0:00:00]} fxe6 {[%emt 0:01:41]} 11. Nbd2 {[%emt 0:00:00]} Nh5 {[%emt 0:09:45]} 12. Nf1 {[%emt 0:00:12]} Qe8 {[%emt 0:05:19]} 13. d4 {[%emt 0:04:51]} exd4 {[%emt 0:03:28]} 14. Nxd4 {[%emt 0:01:00]} Nxd4 {[%emt 0:03:20]} 15. cxd4 {[%emt 0:00:25]} Qf7 {[%emt 0:00:32]} 16. Qe2 {[%emt 0:02:57]} e5 {[%emt 0:02:45]} 17. dxe5 {[%emt 0:00:43]} dxe5 {[%emt 0:00:15]} 18. Be3 {[%emt 0:00:18]} Bd6 {[%emt 0:05:23]} 19. Nd2 {[%emt 0:03:10]} Nf4 {[%emt 0:04:10]} 20. Qc4 {[%emt 0:01:22]} Rad8 {[%emt 0:05:09]} 21. Qxf7+ {[%emt 0:00:40]} Rxf7 {[%emt 0:00:04]} 22. Nc4 {[%emt 0:00:26]} Ne6 {[%emt 0:07:39]} 23. Rad1 {[%emt 0:06:30]} Nd4 {[%emt 0:06:35]} 24. Bg5 {[%emt 0:14:26]} Be7 {[%emt 0:01:42]} 25. Nxe5 {[%emt 0:09:42]} Bxg5 {[%emt 0:01:38]} 26. Nxf7 {[%emt 0:00:20]} Kxf7 {[%emt 0:00:05]} 27. Kh1 {[%emt 0:01:10]} Nb3 {[%emt 0:03:05]} 28. Rxd8 {[%emt 0:03:26]} Bxd8 {[%emt 0:01:41]} 29. Rd1 {[%emt 0:00:04]} Be7 {[%emt 0:03:32]} 30. Rd7 {[%emt 0:01:43]} Nc5 {[%emt 0:03:03]} 31. Rxc7 {[%emt 0:00:07]} a5 {[%emt 0:00:22]} 32. e5 {[%emt 0:04:16]} Ke8 {[%emt 0:05:30]} 33. Rc8+ {[%emt 0:03:54]} Kd7 {[%emt 0:00:05]} 34. Rb8 {[%emt 0:00:32]} Bd8 {[%emt 0:02:18]} 35. f4 {[%emt 0:03:13]} Kc7 {[%emt 0:00:43]} 36. Ra8 {[%emt 0:00:11]} b6 {[%emt 0:04:01]} 37. f5 {[%emt 0:00:57]} Nxa4 {[%emt 0:01:29]} 38. Ra7+ {[%emt 0:00:07]} Kc6 {[%emt 0:00:12]} 39. e6 {[%emt 0:00:32]} Nxb2 {[%emt 0:00:56]} 40. e7 {[%emt 0:02:28]} Bxe7 {[%emt 0:00:06]} 41. Rxe7 {[%emt 0:15:05]} Nd3 {[%emt 0:00:00]} 42. g4 {[%emt 0:00:00]} g5 {[%emt 0:00:00]} 43. f6 {[%emt 0:00:00]} Nf4 {[%emt 0:00:00]} 44. f7 {[%emt 0:00:00]} Ng6 {[%emt 0:00:00]} 45. Re6+ {[%emt 0:00:00]} 1-0

[Event "GER-ch Youth-U12 2024"]
[Site "Willingen"]
[Date "2024.05.19"]
[Round "1"]
[White "Sheng, Ming"]
[Black "Wagener, Nicolas"]
[Result "1-0"]
[ECO "B45"]
[WhiteElo "2031"]
[BlackElo "1713"]
[Annotator "RC"]
[PlyCount "59"]
[EventDate "2022.06.05"]
[EventType "swiss"]
[EventRounds "9"]
[EventCountry "GER"]
[SourceTitle "playchess.com"]
[Source "ChessBase"]
[SourceQuality "1"]
[TimeControl "40/4500+30:900+30"]

1. e4 {[%emt 0:00:00]} c5 {[%emt 0:00:00]} 2. Nf3 {[%emt 0:00:00]} e6 {[%emt 0:00:00]} 3. d4 {[%emt 0:00:00]} cxd4 {[%emt 0:00:00]} 4. Nxd4 {[%emt 0:00:00]} Nf6 {[%emt 0:00:00]} 5. Nc3 {[%emt 0:00:00]} Nc6 {[%emt 0:00:00]} 6. Nxc6 {[%emt 0:00:00]} bxc6 {[%emt 0:00:00]} 7. e5 {[%emt 0:00:00]} Nd5 {[%emt 0:00:00]} 8. Ne4 {[%emt 0:00:00]} Qc7 {[%emt 0:00:00]} 9. f4 {[%emt 0:00:00]} Qb6 {[%emt 0:00:00]} 10. a3 {[%emt 0:00:00]} f5 {[%emt 0:00:00]} 11. exf6 {[%emt 0:00:00]} Nxf6 {[%emt 0:00:00]} 12. Nxf6+ {[%emt 0:00:00]} gxf6 {[%emt 0:00:00]} 13. Qh5+ {[%emt 0:03:05]} Kd8 {[%emt 0:05:50]} 14. Qf7 {[%emt 0:05:40]} Qd4 {[%emt 0:00:00]} 15. Bd2 {[%emt 0:01:15]} Bc5 {[%emt 0:00:00]} 16. O-O-O {[%emt 0:04:10]} Bb6 {[%emt 0:01:13]} 17. c3 {[%emt 0:02:21]} Qf2 {[%emt 0:12:19]} 18. Qxf6+ {[%emt 0:01:16]} Kc7 {[%emt 0:00:07]} 19. Qxh8 {[%emt 0:01:03]} Rb8 {[%emt 0:00:06]} 20. Qe5+ {[%emt 0:01:05]} d6 {[%emt 0:00:41]} 21. Qe2 {[%emt 0:00:17]} Qc5 {[%emt 0:02:22]} 22. Re1 {[%emt 0:01:45]} d5 {[%emt 0:00:49]} 23. f5 {[%emt 0:04:07]} Ba5 {[%emt 0:00:42]} 24. Bf4+ {[%emt 0:02:48]} Kd8 {[%emt 0:03:04]} 25. Bxb8 {[%emt 0:02:14]} Bxc3 {[%emt 0:00:11]} 26. bxc3 {[%emt 0:01:10]} Qxc3+ {[%emt 0:00:21]} 27. Kb1 {[%emt 0:00:52]} Ba6 {[%emt 0:00:30]} 28. Bc7+ {[%emt 0:01:01]} Kd7 {[%emt 0:00:47]} 29. Qxe6+ {[%emt 0:00:10]} Kxc7 {[%emt 0:00:10]} 30. Qe5+ {[%emt 0:00:12]} 1-0

[Event "GER-ch Youth-U12 2024"]
[Site "Willingen"]
[Date "2024.05.19"]
[Round "1"]
[White "Belin, Anton"]
[Black "Sasikumar Anitha, Sarvesh"]
[Result "0-1"]
[ECO "C08"]
[WhiteElo "1948"]
[BlackElo "1703"]
[Annotator "RC"]
[PlyCount "66"]
[EventDate "2022.06.05"]
[EventType "swiss"]
[EventRounds "9"]
[EventCountry "GER"]
[SourceTitle "playchess.com"]
[Source "ChessBase"]
[SourceQuality "1"]
[TimeControl "40/4500+30:900+30"]

1. e4 {[%emt 0:00:00]} e6 {[%emt 0:00:00]} 2. d4 {[%emt 0:00:00]} d5 {[%emt 0:00:00]} 3. Nd2 {[%emt 0:00:00]} c5 {[%emt 0:00:00]} 4. exd5 {[%emt 0:00:00]} exd5 {[%emt 0:00:00]} 5. Ngf3 {[%emt 0:00:00]} Nf6 {[%emt 0:00:00]} 6. dxc5 {[%emt 0:00:00]} Bxc5 {[%emt 0:00:00]} 7. Nb3 {[%emt 0:00:00]} Bb6 {[%emt 0:00:00]} 8. Bb5+ {[%emt 0:00:00]} Nc6 {[%emt 0:00:00]} 9. O-O {[%emt 0:00:00]} O-O {[%emt 0:00:00]} 10. h3 {[%emt 0:00:00]} h6 {[%emt 0:00:00]} 11. Nbd4 {[%emt 0:00:00]} Qd6 {[%emt 0:09:49]} 12. Re1 {[%emt 0:00:59]} Bd7 {[%emt 0:07:44]} 13. Bxc6 {[%emt 0:06:09]} bxc6 {[%emt 0:04:23]} 14. Ne5 {[%emt 0:01:33]} Ne4 {[%emt 0:04:47]} 15. Bf4 {[%emt 0:02:22]} Qb4 {[%emt 0:20:12]} 16. Be3 {[%emt 0:03:49]} Qd6 {[%emt 0:02:09]} 17. Ndf3 {[%emt 0:06:23]} Bxe3 {[%emt 0:04:08]} 18. Rxe3 {[%emt 0:00:46]} Bf5 {[%emt 0:00:54]} 19. Qe2 {[%emt 0:07:28]} Rae8 {[%emt 0:04:29]} 20. Nd3 {[%emt 0:01:50]} d4 {[%emt 0:01:33]} 21. Nh4 {[%emt 0:02:21]} dxe3 {[%emt 0:00:34]} 22. Nxf5 {[%emt 0:00:21]} exf2+ {[%emt 0:00:17]} 23. Nxf2 {[%emt 0:00:29]} Qf4 {[%emt 0:01:34]} 24. Qf3 {[%emt 0:03:38]} Qxf3 {[%emt 0:00:55]} 25. gxf3 {[%emt 0:00:10]} Ng5 {[%emt 0:00:37]} 26. f4 {[%emt 0:00:53]} Nf3+ {[%emt 0:00:15]} 27. Kg2 {[%emt 0:00:10]} Ne1+ {[%emt 0:00:15]} 28. Kf1 {[%emt 0:00:32]} Nxc2 {[%emt 0:00:26]} 29. Rc1 {[%emt 0:00:04]} Nb4 {[%emt 0:00:12]} 30. Rc4 {[%emt 0:01:25]} Nd5 {[%emt 0:00:58]} 31. Ng4 {[%emt 0:01:11]} h5 {[%emt 0:00:34]} 32. Ne5 {[%emt 0:00:11]} g6 {[%emt 0:00:18]} 33. Nd6 {[%emt 0:00:24]} Ne3+ {[%emt 0:00:23]} 0-1

[Event "GER-ch Youth-U12 2024"]
[Site "Willingen"]
[Date "2024.05.19"]
[Round "1"]
[White "Li, Yunqi"]
[Black "Doeding, Alexander"]
[Result "1-0"]
[ECO "E90"]
[WhiteElo "1940"]
[BlackElo "1633"]
[Annotator "RC"]
[PlyCount "77"]
[EventDate "2022.06.05"]
[EventType "swiss"]
[EventRounds "9"]
[EventCountry "GER"]
[SourceTitle "playchess.com"]
[Source "ChessBase"]
[SourceQuality "1"]
[TimeControl "40/4500+30:900+30"]

1. e4 {[%emt 0:00:00]} g6 {[%emt 0:00:00]} 2. d4 {[%emt 0:00:00]} Bg7 {[%emt 0:00:00]} 3. c4 {[%emt 0:00:00]} d6 {[%emt 0:00:00]} 4. Nf3 {[%emt 0:00:00]} Nf6 {[%emt 0:00:00]} 5. Nc3 {[%emt 0:00:00]} Nbd7 {[%emt 0:00:00]} 6. Be2 {[%emt 0:00:00]} b6 {[%emt 0:00:00]} 7. O-O {[%emt 0:00:00]} Bb7 {[%emt 0:00:00]} 8. Qc2 {[%emt 0:11:40]} O-O {[%emt 0:00:00]} 9. Ne1 {[%emt 0:01:20]} c5 {[%emt 0:08:19]} 10. d5 {[%emt 0:00:18]} a6 {[%emt 0:07:01]} 11. Be3 {[%emt 0:00:46]} Qc7 {[%emt 0:00:50]} 12. Nd3 {[%emt 0:06:52]} Rfe8 {[%emt 0:06:27]} 13. f3 {[%emt 0:03:17]} e6 {[%emt 0:05:48]} 14. Bf2 {[%emt 0:08:13]} exd5 {[%emt 0:02:16]} 15. Nxd5 {[%emt 0:02:49]} Nxd5 {[%emt 0:01:52]} 16. cxd5 {[%emt 0:00:11]} Rec8 {[%emt 0:01:40]} 17. Rac1 {[%emt 0:00:48]} b5 {[%emt 0:07:34]} 18. b3 {[%emt 0:02:34]} a5 {[%emt 0:05:26]} 19. Nb2 {[%emt 0:04:25]} Ba6 {[%emt 0:01:56]} 20. Kh1 {[%emt 0:10:30]} Nb6 {[%emt 0:02:52]} 21. Qd2 {[%emt 0:03:54]} Qd7 {[%emt 0:04:21]} 22. a3 {[%emt 0:01:32]} b4 {[%emt 0:05:08]} 23. Bxa6 {[%emt 0:00:17]} Rxa6 {[%emt 0:00:17]} 24. a4 {[%emt 0:00:46]} c4 {[%emt 0:11:05]} 25. Qe2 {[%emt 0:01:37]} Bxb2 {[%emt 0:03:04]} 26. Qxb2 {[%emt 0:00:08]} cxb3 {[%emt 0:00:38]} 27. Qxb3 {[%emt 0:01:23]} Rxc1 {[%emt 0:01:22]} 28. Rxc1 {[%emt 0:00:10]} Qxa4 {[%emt 0:00:59]} 29. Rc8+ {[%emt 0:00:33]} Kg7 {[%emt 0:01:07]} 30. Qb2+ {[%emt 0:01:13]} f6 {[%emt 0:00:35]} 31. Bxb6 {[%emt 0:01:23]} Rxb6 {[%emt 0:01:08]} 32. Rc7+ {[%emt 0:00:12]} Kh6 {[%emt 0:00:23]} 33. h4 {[%emt 0:00:35]} Qd1+ {[%emt 0:02:15]} 34. Kh2 {[%emt 0:00:08]} b3 {[%emt 0:01:56]} 35. Qxf6 {[%emt 0:00:21]} Qd2 {[%emt 0:00:38]} 36. Qg7+ {[%emt 0:00:35]} Kh5 {[%emt 0:00:33]} 37. Qxh7+ {[%emt 0:00:05]} Qh6 {[%emt 0:00:22]} 38. g4+ {[%emt 0:00:04]} Kxh4 {[%emt 0:00:10]} 39. Qxh6# {[%emt 0:00:05]} 1-0

[Event "GER-ch Youth-U12 2024"]
[Site "Willingen"]
[Date "2024.05.19"]
[Round "1"]
[White "Stehning, Toni"]
[Black "Subocz, Barbara"]
[Result "1-0"]
[ECO "B75"]
[WhiteElo "1821"]
[BlackElo "1692"]
[Annotator "NA RC"]
[PlyCount "103"]
[EventDate "2022.06.05"]
[EventType "swiss"]
[EventRounds "9"]
[EventCountry "GER"]
[SourceTitle "playchess.com"]
[Source "ChessBase"]
[SourceQuality "1"]
[TimeControl "40/4500+30:900+30"]

1. e4 {[%emt 0:00:00]} c5 {[%emt 0:00:00]} 2. Nf3 {[%emt 0:00:00]} d6 {[%emt 0:00:00]} 3. d4 {[%emt 0:00:00]} cxd4 {[%emt 0:00:00]} 4. Nxd4 {[%emt 0:00:00]} Nf6 {[%emt 0:00:00]} 5. Nc3 {[%emt 0:00:00]} g6 {[%emt 0:00:00]} 6. Be3 {[%emt 0:00:00]} Bg7 {[%emt 0:00:00]} 7. f3 {[%emt 0:00:00]} Nc6 {[%emt 0:00:00]} 8. Qd2 {[%emt 0:00:00]} Nxd4 {[%emt 0:00:00]} 9. Bxd4 {[%emt 0:00:00]} a6 {[%emt 0:00:00]} 10. Nd5 {[%emt 0:00:00]} e6 {[%emt 0:01:10]} 11. Nxf6+ {[%emt 0:00:00]} Bxf6 {[%emt 0:00:32]} 12. Bxf6 {[%emt 0:00:00]} Qxf6 {[%emt 0:00:21]} 13. Qxd6 {[%emt 0:00:21]} Qxb2 {[%emt 0:02:43]} 14. Rd1 {[%emt 0:01:18]} Qc3+ {[%emt 0:01:24]} 15. Rd2 {[%emt 0:00:47]} Qa1+ {[%emt 0:01:13]} 16. Kf2 {[%emt 0:00:11]} Qf6 {[%emt 0:00:40]} 17. Be2 {[%emt 0:03:14]} Qe7 {[%emt 0:00:45]} 18. e5 {[%emt 0:00:42]} Qxd6 {[%emt 0:01:22]} 19. exd6 {[%emt 0:00:18]} Bd7 {[%emt 0:00:36]} 20. c4 {[%emt 0:01:00]} Bc6 {[%emt 0:04:13]} 21. c5 {[%emt 0:01:15]} Kd7 {[%emt 0:01:00]} 22. Rb1 {[%emt 0:07:17]} Rab8 {[%emt 0:02:49]} 23. Rdb2 {[%emt 0:01:29]} a5 {[%emt 0:06:23]} 24. Bb5 {[%emt 0:00:42]} Rhc8 {[%emt 0:01:25]} 25. Bxc6+ {[%emt 0:03:20]} Kxc6 {[%emt 0:01:53]} 26. Rb5 {[%emt 0:02:47]} Rd8 {[%emt 0:01:42]} 27. Rxa5 {[%emt 0:00:28]} b5 {[%emt 0:01:42]} 28. Rc1 {[%emt 0:01:58]} Ra8 {[%emt 0:01:03]} 29. Rxa8 {[%emt 0:00:11]} Rxa8 {[%emt 0:00:09]} 30. Rc2 {[%emt 0:00:14]} Ra5 {[%emt 0:00:32]} 31. h4 {[%emt 0:01:36]} h5 {[%emt 0:02:03]} 32. Rd2 {[%emt 0:00:27]} Ra8 {[%emt 0:00:27]} 33. Rc2 {[%emt 0:02:01]} e5 {[%emt 0:02:48]} 34. g4 {[%emt 0:02:16]} f5 {[%emt 0:00:28]} 35. g5 {[%emt 0:04:12]} f4 {[%emt 0:00:41]} 36. Ke2 {[%emt 0:00:29]} Ra3 {[%emt 0:00:28]} 37. Rd2 {[%emt 0:03:02]} Ra8 {[%emt 0:01:00]} 38. d7 {[%emt 0:12:30]} Rd8 {[%emt 0:00:27]} 39. Rd6+ {[%emt 0:00:31]} Kxc5 {[%emt 0:00:10]} 40. Rxg6 {[%emt 0:00:38]} Rxd7 {[%emt 0:00:19]} 41. Rh6 {[%emt 0:15:33]} Kc4 {[%emt 0:16:25]} 42. Rxh5 {[%emt 0:00:24]} Rg7 {[%emt 0:00:29]} 43. Rh6 {[%emt 0:00:35]} Kc3 {[%emt 0:00:33]} 44. g6 {[%emt 0:01:52]} Kb2 {[%emt 0:01:00]} 45. h5 {[%emt 0:00:15]} Kxa2 {[%emt 0:00:07]} 46. Rh7 {[%emt 0:00:13]} Rg8 {[%emt 0:00:32]} 47. Rb7 {[%emt 0:00:31]} Rh8 {[%emt 0:00:41]} 48. g7 {[%emt 0:00:08]} Rg8 {[%emt 0:00:23]} 49. h6 {[%emt 0:00:06]} b4 {[%emt 0:00:18]} 50. h7 {[%emt 0:00:10]} Rxg7 {[%emt 0:00:12]} 51. Rxg7 {[%emt 0:00:06]} b3 {[%emt 0:00:04]} 52. h8=Q {[%emt 0:00:23]} 1-0

[Event "GER-ch Youth-U12 2024"]
[Site "Willingen"]
[Date "2024.05.19"]
[Round "1"]
[White "Rodriguez Klasen, Ennio"]
[Black "Lee, Ho In"]
[Result "1/2-1/2"]
[ECO "B08"]
[WhiteElo "1802"]
[BlackElo "1668"]
[Annotator "NA RC"]
[PlyCount "93"]
[EventDate "2022.06.05"]
[EventType "swiss"]
[EventRounds "9"]
[EventCountry "GER"]
[SourceTitle "playchess.com"]
[Source "ChessBase"]
[SourceQuality "1"]
[TimeControl "40/4500+30:900+30"]

1. e4 {[%emt 0:00:00]} c5 {[%emt 0:00:00]} 2. d4 {[%emt 0:00:00]} cxd4 {[%emt 0:00:00]} 3. Qxd4 {[%emt 0:00:00]} Nc6 {[%emt 0:00:00]} 4. Qd3 {[%emt 0:00:00]} Nf6 {[%emt 0:00:00]} 5. Nc3 {[%emt 0:00:00]} g6 {[%emt 0:00:00]} 6. Nf3 {[%emt 0:00:00]} d6 {[%emt 0:00:00]} 7. Be2 {[%emt 0:00:00]} Bg7 {[%emt 0:00:00]} 8. O-O {[%emt 0:00:00]} O-O {[%emt 0:00:00]} 9. Nd5 {[%emt 0:00:00]} Nxd5 {[%emt 0:00:00]} 10. exd5 {[%emt 0:00:00]} Bf5 {[%emt 0:00:00]} 11. Qb5 {[%emt 0:00:00]} Ne5 {[%emt 0:00:00]} 12. Nxe5 {[%emt 0:00:00]} Bxe5 {[%emt 0:00:00]} 13. c3 {[%emt 0:00:00]} Qc7 {[%emt 0:08:42]} 14. Be3 {[%emt 0:00:00]} Rfb8 {[%emt 0:06:31]} 15. a4 {[%emt 0:00:00]} b6 {[%emt 0:04:38]} 16. Ra3 {[%emt 0:00:39]} h5 {[%emt 0:14:26]} 17. Qb4 {[%emt 0:07:02]} Kg7 {[%emt 0:11:09]} 18. h3 {[%emt 0:04:11]} Rb7 {[%emt 0:06:24]} 19. g4 {[%emt 0:04:24]} a5 {[%emt 0:21:32]} 20. Qb3 {[%emt 0:03:18]} hxg4 {[%emt 0:00:15]} 21. hxg4 {[%emt 0:02:17]} Qc8 {[%emt 0:00:43]} 22. gxf5 {[%emt 0:20:39]} Qh8 {[%emt 0:00:11]} 23. f6+ {[%emt 0:04:14]} exf6 {[%emt 0:05:43]} 24. f4 {[%emt 0:01:41]} Qh4 {[%emt 0:00:55]} 25. Rf2 {[%emt 0:10:30]} Rh8 {[%emt 0:00:41]} 26. Bf3 {[%emt 0:01:01]} Bxf4 {[%emt 0:02:13]} 27. Bxf4 {[%emt 0:01:46]} Qxf4 {[%emt 0:00:04]} 28. Qd1 {[%emt 0:02:44]} Re7 {[%emt 0:01:15]} 29. Qd2 {[%emt 0:01:52]} Qg3+ {[%emt 0:01:23]} 30. Bg2 {[%emt 0:01:38]} Rh4 {[%emt 0:00:43]} 31. c4 {[%emt 0:01:27]} Qe5 {[%emt 0:01:05]} 32. Rh3 {[%emt 0:07:30]} Rxh3 {[%emt 0:00:25]} 33. Bxh3 {[%emt 0:00:04]} Qg3+ {[%emt 0:00:12]} 34. Bg2 {[%emt 0:00:35]} Re5 {[%emt 0:00:26]} 35. Qc3 {[%emt 0:02:04]} Qg4 {[%emt 0:00:55]} 36. Qf3 {[%emt 0:05:23]} Re1+ {[%emt 0:01:07]} 37. Rf1 {[%emt 0:01:03]} Rxf1+ {[%emt 0:00:34]} 38. Qxf1 {[%emt 0:01:12]} Qd4+ {[%emt 0:00:08]} 39. Qf2 {[%emt 0:01:04]} Qd1+ {[%emt 0:00:28]} 40. Bf1 {[%emt 0:02:16]} Qg4+ {[%emt 0:00:40]} 41. Kh2 {[%emt 0:00:00]} Qh5+ {[%emt 0:00:00]} 42. Bh3 {[%emt 0:00:00]} Qe5+ {[%emt 0:00:00]} 43. Kg1 {[%emt 0:00:00]} Qg5+ {[%emt 0:00:00]} 44. Bg2 {[%emt 0:00:49]} Qc1+ {[%emt 0:00:00]} 45. Kh2 {[%emt 0:01:05]} Qxc4 {[%emt 0:00:00]} 46. Qxb6 {[%emt 0:00:38]} Qh4+ {[%emt 0:00:00]} 47. Kg1 {[%emt 0:00:00]} 1/2-1/2

[Event "GER-ch Youth-U12 2024"]
[Site "Willingen"]
[Date "2024.05.19"]
[Round "1"]
[White "Vartanian, Roman"]
[Black "Draude, Theo"]
[Result "1-0"]
[ECO "A58"]
[WhiteElo "1797"]
[BlackElo "1731"]
[Annotator "NA RC"]
[PlyCount "55"]
[EventDate "2022.06.05"]
[EventType "swiss"]
[EventRounds "9"]
[EventCountry "GER"]
[SourceTitle "playchess.com"]
[Source "ChessBase"]
[SourceQuality "1"]
[TimeControl "40/4500+30:900+30"]

1. Nf3 {[%emt 0:00:00]} Nf6 {[%emt 0:00:00]} 2. d4 {[%emt 0:00:00]} g6 {[%emt 0:00:00]} 3. c4 {[%emt 0:00:00]} c5 {[%emt 0:00:00]} 4. d5 {[%emt 0:00:00]} b5 {[%emt 0:00:00]} 5. cxb5 {[%emt 0:00:00]} a6 {[%emt 0:00:00]} 6. bxa6 {[%emt 0:00:00]} Bxa6 {[%emt 0:00:00]} 7. Nc3 {[%emt 0:00:00]} d6 {[%emt 0:00:00]} 8. g3 {[%emt 0:00:00]} Bg7 {[%emt 0:00:00]} 9. Bg2 {[%emt 0:00:00]} O-O {[%emt 0:00:00]} 10. O-O {[%emt 0:00:00]} Nbd7 {[%emt 0:00:00]} 11. Re1 {[%emt 0:00:00]} Ng4 {[%emt 0:00:00]} 12. Qc2 {[%emt 0:01:20]} Nge5 {[%emt 0:00:00]} 13. Nxe5 {[%emt 0:06:03]} Nxe5 {[%emt 0:00:00]} 14. f4 {[%emt 0:01:11]} Nd7 {[%emt 0:08:52]} 15. Bd2 {[%emt 0:13:32]} Qb6 {[%emt 0:04:52]} 16. Kh1 {[%emt 0:01:28]} Rfb8 {[%emt 0:05:23]} 17. Rab1 {[%emt 0:05:07]} c4 {[%emt 0:09:52]} 18. Na4 {[%emt 0:09:54]} Qc7 {[%emt 0:01:34]} 19. Bc3 {[%emt 0:02:32]} Bb5 {[%emt 0:05:07]} 20. Bxg7 {[%emt 0:01:26]} Kxg7 {[%emt 0:11:16]} 21. Nc3 {[%emt 0:00:11]} Ba6 {[%emt 0:07:45]} 22. Ne4 {[%emt 0:03:28]} Bb7 {[%emt 0:02:25]} 23. Nc3 {[%emt 0:07:00]} Nc5 {[%emt 0:03:56]} 24. Nb5 {[%emt 0:02:39]} Qd7 {[%emt 0:03:57]} 25. Qxc4 {[%emt 0:03:30]} Ra4 {[%emt 0:06:01]} 26. b4 {[%emt 0:05:21]} Kg8 {[%emt 0:07:46]} 27. Nc3 {[%emt 0:02:16]} Ba6 {[%emt 0:01:10]} 28. Qd4 {[%emt 0:00:37]} 1-0

[Event "GER-ch Youth-U12 2024"]
[Site "Willingen"]
[Date "2024.05.19"]
[Round "1"]
[White "Fischermann, Simon"]
[Black "Kaza, Charith"]
[Result "1/2-1/2"]
[ECO "B23"]
[WhiteElo "1789"]
[BlackElo "1503"]
[Annotator "NA RC"]
[PlyCount "151"]
[EventDate "2022.06.05"]
[EventType "swiss"]
[EventRounds "9"]
[EventCountry "GER"]
[SourceTitle "playchess.com"]
[Source "ChessBase"]
[SourceQuality "1"]
[TimeControl "40/4500+30:900+30"]

1. e4 {[%emt 0:00:00]} c5 {[%emt 0:00:00]} 2. Nc3 {[%emt 0:00:00]} Nc6 {[%emt 0:00:00]} 3. Bb5 {[%emt 0:00:00]} g6 {[%emt 0:00:00]} 4. Bxc6 {[%emt 0:00:00]} dxc6 {[%emt 0:00:00]} 5. d3 {[%emt 0:00:00]} Bg7 {[%emt 0:00:00]} 6. f4 {[%emt 0:00:00]} e5 {[%emt 0:00:00]} 7. Nf3 {[%emt 0:00:00]} Bg4 {[%emt 0:00:00]} 8. O-O {[%emt 0:00:00]} Ne7 {[%emt 0:00:00]} 9. fxe5 {[%emt 0:00:00]} O-O {[%emt 0:00:00]} 10. h3 {[%emt 0:00:00]} Bxf3 {[%emt 0:00:00]} 11. Qxf3 {[%emt 0:00:00]} Qd4+ {[%emt 0:00:00]} 12. Kh1 {[%emt 0:00:00]} Qxe5 {[%emt 0:00:00]} 13. Bf4 {[%emt 0:01:19]} Qe6 {[%emt 0:00:31]} 14. Rae1 {[%emt 0:01:08]} Rad8 {[%emt 0:03:33]} 15. Be3 {[%emt 0:03:06]} b6 {[%emt 0:01:04]} 16. a4 {[%emt 0:01:21]} c4 {[%emt 0:14:38]} 17. dxc4 {[%emt 0:01:34]} Qxc4 {[%emt 0:00:23]} 18. Bg5 {[%emt 0:03:09]} f6 {[%emt 0:07:19]} 19. b3 {[%emt 0:01:05]} Qf7 {[%emt 0:01:51]} 20. Bc1 {[%emt 0:09:23]} Rd7 {[%emt 0:07:48]} 21. Ba3 {[%emt 0:00:39]} c5 {[%emt 0:00:30]} 22. Nd1 {[%emt 0:02:47]} Nc6 {[%emt 0:02:29]} 23. Bb2 {[%emt 0:00:37]} Nb4 {[%emt 0:05:03]} 24. Ne3 {[%emt 0:01:09]} Rfd8 {[%emt 0:02:41]} 25. Bxf6 {[%emt 0:04:48]} Bxf6 {[%emt 0:03:14]} 26. Qxf6 {[%emt 0:01:13]} Qxf6 {[%emt 0:00:07]} 27. Rxf6 {[%emt 0:00:06]} Kg7 {[%emt 0:00:03]} 28. Rf2 {[%emt 0:02:59]} Rd2 {[%emt 0:01:31]} 29. Ref1 {[%emt 0:00:46]} Rxf2 {[%emt 0:03:06]} 30. Rxf2 {[%emt 0:00:03]} Rd4 {[%emt 0:00:44]} 31. e5 {[%emt 0:01:49]} Re4 {[%emt 0:00:28]} 32. Nc4 {[%emt 0:00:18]} Nc6 {[%emt 0:00:29]} 33. Rd2 {[%emt 0:00:05]} Rd4 {[%emt 0:04:32]} 34. Re2 {[%emt 0:01:14]} Kf7 {[%emt 0:00:22]} 35. g4 {[%emt 0:02:48]} Ke6 {[%emt 0:02:24]} 36. Kg2 {[%emt 0:00:10]} h6 {[%emt 0:00:08]} 37. Kg3 {[%emt 0:09:05]} Rd5 {[%emt 0:00:10]} 38. g5 {[%emt 0:00:29]} hxg5 {[%emt 0:03:45]} 39. Kg4 {[%emt 0:00:39]} Rd1 {[%emt 0:02:16]} 40. Kxg5 {[%emt 0:01:18]} Rg1+ {[%emt 0:00:08]} 41. Kh6 {[%emt 0:19:43]} Nd4 {[%emt 0:16:12]} 42. Rf2 {[%emt 0:01:31]} Nf5+ {[%emt 0:00:30]} 43. Kh7 {[%emt 0:00:41]} Rg3 {[%emt 0:02:02]} 44. h4 {[%emt 0:11:27]} Rg4 {[%emt 0:01:03]} 45. Rd2 {[%emt 0:04:24]} a6 {[%emt 0:04:06]} 46. Nxb6 {[%emt 0:03:00]} Kf7 {[%emt 0:00:15]} 47. Rd7+ {[%emt 0:07:42]} Ne7 {[%emt 0:00:12]} 48. h5 {[%emt 0:02:05]} Rh4 {[%emt 0:01:45]} 49. Rxe7+ {[%emt 0:00:20]} Kxe7 {[%emt 0:00:28]} 50. Kxg6 {[%emt 0:00:04]} Ke6 {[%emt 0:03:12]} 51. h6 {[%emt 0:02:20]} Rg4+ {[%emt 0:01:23]} 52. Kh5 {[%emt 0:01:04]} Rg1 {[%emt 0:00:20]} 53. h7 {[%emt 0:00:34]} Kf5 {[%emt 0:00:43]} 54. Kh4 {[%emt 0:01:24]} Rh1+ {[%emt 0:00:35]} 55. Kg3 {[%emt 0:00:04]} Rxh7 {[%emt 0:00:05]} 56. Nc4 {[%emt 0:00:35]} Rh1 {[%emt 0:00:52]} 57. Kf3 {[%emt 0:00:07]} Rh3+ {[%emt 0:01:41]} 58. Ke2 {[%emt 0:00:14]} Ke4 {[%emt 0:02:19]} 59. Kd2 {[%emt 0:00:37]} Kd4 {[%emt 0:01:34]} 60. c3+ {[%emt 0:01:00]} Rxc3 {[%emt 0:00:14]} 61. e6 {[%emt 0:01:04]} Rxb3 {[%emt 0:01:43]} 62. e7 {[%emt 0:00:08]} Rb8 {[%emt 0:01:26]} 63. Nd6 {[%emt 0:00:02]} Rb2+ {[%emt 0:00:05]} 64. Kc1 {[%emt 0:00:54]} Rb8 {[%emt 0:00:19]} 65. Kc2 {[%emt 0:00:26]} a5 {[%emt 0:02:05]} 66. Nb5+ {[%emt 0:05:41]} Kd5 {[%emt 0:01:20]} 67. Nc7+ {[%emt 0:01:01]} Kc4 {[%emt 0:00:23]} 68. e8=Q {[%emt 0:00:00]} Rxe8 {[%emt 0:00:00]} 69. Nxe8 {[%emt 0:00:00]} Kb4 {[%emt 0:00:00]} 70. Nd6 {[%emt 0:00:00]} Kxa4 {[%emt 0:00:00]} 71. Kc3 {[%emt 0:00:00]} Ka3 {[%emt 0:00:00]} 72. Kc4 {[%emt 0:00:00]} Kb2 {[%emt 0:00:00]} 73. Kxc5 {[%emt 0:00:00]} a4 {[%emt 0:00:00]} 74. Kb4 {[%emt 0:00:00]} a3 {[%emt 0:00:00]} 75. Nc4+ {[%emt 0:00:00]} Kc2 {[%emt 0:00:00]} 76. Nxa3+ {[%emt 0:00:00]} 1/2-1/2